bitfinex/quotes_ETHUSD_20251021
["timestamp","ask_amount","ask_price","bid_price","bid_amount"]
[1761052249064,1e-08,3882.9,3882.8,9.151241]
[1761052253820,1e-08,3882.9,3882.8,9.379241]
[1761052254128,1e-08,3882.9,3882.8,8.604361]
[1761052254298,1e-08,3882.9,3882.8,9.72235252]
[1761052254494,1e-08,3882.9,3882.8,9.83333252]
[1761052255325,1e-08,3882.9,3882.8,9.96133252]
[1761052255726,1e-08,3882.9,3882.8,10.35723252]
[1761052255927,1e-08,3882.9,3882.8,9.96133252]
[1761052256510,1e-08,3882.9,3882.8,8.23333252]
[1761052256704,1e-08,3882.9,3882.8,8.62923252]
[1761052257236,1e-08,3882.9,3882.8,10.35723252]
[1761052258732,1e-08,3882.9,3882.8,6.05633252]
[1761052258931,1e-08,3882.9,3882.8,8.827341]
[1761052259107,1e-08,3882.9,3882.8,8.699341]
[1761052259726,1e-08,3882.9,3882.8,9.095241]
[1761052259929,1e-08,3882.9,3882.8,8.699341]
[1761052260130,1e-08,3882.9,3882.8,8.701341]
[1761052260452,1e-08,3882.9,3882.8,6.973341]
[1761052261121,1e-08,3882.9,3882.8,8.32413052]
[1761052261324,1e-08,3882.9,3882.8,7.92823052]
[1761052261747,1e-08,3882.9,3882.8,7.42135052]
[1761052262059,1e-08,3882.9,3882.8,8.32413052]
[1761052262252,1e-08,3882.9,3882.8,10.05213052]
[1761052262553,0.8125,3884.3,3884.2,3.08141272]
[1761052262851,0.8125,3884.3,3884.2,7.52201554]
[1761052263076,0.2367,3886.3,3884.7,2.57420135]
[1761052263219,0.4297,3885.8,3884.7,6.44620135]
[1761052263866,0.4307,3885.4,3884.7,6.44620135]
[1761052264359,0.4307,3885.4,3884.5,2.57428407]
[1761052264360,1.2422,3884.8,3883.7,0.50688]
[1761052264529,0.57742,3884.7,3883.8,3.868]
[1761052264881,0.57742,3884.7,3883.6,3.867]
[1761052264882,0.234,3883.8,3883.6,3.867]
[1761052265023,0.234,3883.8,3883.6,6.43990989]
[1761052265228,0.234,3883.8,3883.6,3.865]
[1761052265558,0.4297,3884.6,3884.5,2.57433389]
[1761052265870,0.4297,3884.6,3884.2,6.43853247]
[1761052266022,0.4297,3884.6,3884.5,2.57433389]
[1761052266222,0.4297,3884.6,3884.3,2.57440627]
[1761052266469,0.4297,3884.6,3884.5,2.57433389]
[1761052266850,0.4297,3884.6,3884.3,2.57440992]
[1761052267172,0.4297,3884.6,3884.5,2.57433389]
[1761052268094,0.4297,3884.6,3884.1,3.863]
[1761052268288,0.4297,3884.6,3884.5,2.57433389]
[1761052268584,0.8125,3884.8,3884.7,2.57420135]
[1761052269088,0.8125,3884.8,3884.7,2.70220135]
[1761052269990,0.8125,3884.8,3884.7,3.20908135]
[1761052271212,0.8125,3884.8,3884.0,0.3959]
[1761052271213,7.240621,3884.7,3881.5,2.57629589]
[1761052271412,0.234,3882.9,3881.6,6.41920692]
[1761052271697,0.234,3882.9,3882.8,2.577461]
[1761052271849,0.89716469,3883.8,3882.8,6.44215817]
[1761052271850,0.5461004,3883.6,3882.8,6.44215817]
[1761052272050,1.13116469,3884.0,3883.4,2.57506308]
[1761052272051,0.5461176,3883.5,3883.4,2.57506308]
[1761052272253,0.5461176,3883.9,3883.6,2.57488121]
[1761052272493,0.5461176,3883.9,3883.4,2.57506308]
[1761052272494,0.234,3884.0,3883.7,0.02574864]
[1761052272700,0.54621118,3883.9,3883.8,2.57479787]
[1761052272864,0.54621118,3883.9,3883.8,3.08167787]
[1761052273067,0.54621118,3884.3,3884.2,2.57453272]
[1761052273779,0.54621118,3884.7,3884.5,2.57431739]
[1761052273954,0.54621118,3884.6,3884.1,3.836]
[1761052274155,0.54621118,3884.5,3881.1,0.258]
[1761052274392,0.54621118,3884.5,3882.9,0.128]
[1761052274393,0.54621118,3884.4,3882.9,0.128]
[1761052274594,0.54621118,3884.3,3883.3,2.57510317]
[1761052274875,0.20224112,3884.6,3884.1,2.57458338]
[1761052274876,0.54621118,3884.2,3884.1,2.57458338]
[1761052275072,0.54621118,3884.2,3883.1,2.23488]
[1761052275408,0.20224112,3884.6,3883.6,2.57488622]
[1761052275409,0.97591118,3884.1,3883.6,2.57488622]
[1761052275603,0.54621118,3884.0,3883.7,2.57480524]
[1761052275784,0.234,3883.3,3883.2,2.57519571]
[1761052275980,0.6637,3883.3,3883.2,2.57519571]
[1761052276385,0.6637,3883.3,3882.8,0.002]
[1761052276610,0.97591118,3883.2,3882.8,0.002]
[1761052276812,0.54621118,3883.1,3883.0,2.57532835]
[1761052276985,0.97591118,3883.2,3883.1,2.57526203]
[1761052277177,0.54608318,3883.2,3883.1,2.57526203]
[1761052277377,0.234,3883.3,3882.8,3.823]
[1761052277614,0.4297,3883.2,3883.1,2.57526203]
[1761052278311,0.234,3883.3,3883.2,2.57519571]
[1761052278973,1.22576479,3883.3,3883.2,2.57519571]
[1761052279174,0.234,3883.3,3883.2,2.57519571]
[1761052279380,0.6798,3883.3,3882.8,3.823]
[1761052279588,0.6798,3883.3,3883.2,2.57519571]
[1761052279989,0.6798,3883.3,3883.1,0.002]
[1761052280311,0.99169187,3883.2,3883.1,0.002]
[1761052280686,1.37176218,3883.2,3883.1,0.002]
[1761052283234,3.94695789,3883.2,3883.1,0.002]
[1761052283529,5.67495789,3883.2,3883.1,0.002]
[1761052285016,3.09976218,3883.2,3883.1,0.002]
[1761052285819,0.99169187,3883.2,3883.1,0.002]
[1761052285995,0.5738,3883.6,3883.1,0.002]
[1761052286425,0.54454434,3883.9,3883.1,0.1639]
[1761052286602,0.4458,3883.6,3883.1,0.002]
[1761052286792,0.4458,3883.6,3883.5,2.57499678]
[1761052286998,0.54456625,3883.9,3883.6,2.57489327]
[1761052287193,0.54456625,3883.9,3883.1,0.002]
[1761052287501,0.6798,3884.0,3883.8,2.57475219]
[1761052287895,0.6798,3884.0,3883.9,2.57473158]
[1761052288203,0.4458,3884.5,3884.2,2.5744842]
[1761052288523,0.4458,3884.5,3884.2,2.57451918]
[1761052288829,0.4458,3884.5,3884.3,2.5744562]
[1761052289210,0.7478667,3884.6,3883.3,3.775]
[1761052289459,0.001,3884.6,3884.5,2.57433389]
[1761052289759,0.001,3884.6,3883.5,0.50688]
[1761052290059,0.001,3884.6,3884.2,2.57447775]
[1761052290431,0.001,3884.6,3883.5,0.50688]
[1761052290432,0.4468,3884.6,3883.5,0.50688]
[1761052290635,0.2173,3883.6,3883.1,0.002]
[1761052291043,0.4384,3883.5,3883.1,0.002]
[1761052291252,0.2173,3883.6,3883.3,2.57508506]
[1761052291561,0.2173,3883.6,3883.1,0.002]
[1761052291562,0.4384,3884.0,3883.1,0.002]
[1761052291766,0.2279,3883.8,3883.1,0.1639]
[1761052292074,0.2279,3883.8,3883.5,2.57498207]
[1761052292374,0.4384,3883.7,3883.1,0.002]
[1761052292543,0.4384,3883.7,3883.5,2.57494993]
[1761052292876,0.4384,3883.7,3883.1,0.002]
[1761052293056,3.01327887,3883.7,3883.1,0.002]
[1761052293234,1.07933131,3883.6,3883.1,0.002]
[1761052293754,2.57506397,3883.4,3883.1,0.002]
[1761052293955,0.4384,3883.5,3883.1,0.002]
[1761052294129,0.4384,3883.4,3883.1,0.002]
[1761052295456,0.001,3884.6,3883.2,0.50688]
[1761052295783,0.001,3884.6,3884.3,2.57441853]
[1761052296074,0.001,3884.6,3884.5,2.57433389]
[1761052296441,0.001,3884.6,3884.5,2.70233389]
[1761052297148,0.001,3884.6,3884.5,3.50285722]
[1761052297348,0.001,3884.6,3884.5,3.47711389]
[1761052297538,0.8125,3884.8,3884.5,3.47711389]
[1761052297539,1e-08,3884.8,3884.7,4.80908135]
[1761052297742,1e-08,3884.8,3884.7,5.23072336]
[1761052297942,1e-08,3884.8,3884.7,5.20498135]
[1761052298149,1e-08,3884.8,3884.7,5.23072336]
[1761052299059,0.8125,3886.5,3886.4,2.57307533]
[1761052299780,1.2509,3886.5,3886.1,2.57324109]
[1761052299944,0.2279,3886.2,3885.0,2.57397714]
[1761052300138,0.2279,3886.2,3885.7,2.57350817]
[1761052300339,0.6663,3886.2,3885.8,2.57347205]
[1761052300578,0.4384,3886.1,3885.8,2.57347205]
[1761052300766,0.8125,3886.5,3885.4,2.57373758]
[1761052300972,0.8125,3886.5,3885.9,2.5733851]
[1761052301345,0.8125,3886.5,3885.9,2.5734062]
[1761052301543,1.2509,3886.5,3885.9,2.5734062]
[1761052301738,1.63327188,3886.5,3885.8,2.57346062]
[1761052301960,1.2509,3886.5,3885.7,2.5735237]
[1761052302161,1.2509,3886.5,3885.6,2.57360104]
[1761052302344,0.4384,3886.4,3885.6,2.57360104]
[1761052302544,0.4384,3886.4,3885.5,2.57361635]
[1761052302871,0.4384,3886.4,3885.7,2.57353325]
[1761052303076,0.82078646,3886.4,3885.3,3.731]
[1761052303275,0.4384,3886.4,3885.7,2.57353447]
[1761052303472,0.4384,3886.4,3885.3,3.731]
[1761052303657,0.4384,3886.4,3885.8,2.57342605]
[1761052304268,0.4384,3886.4,3885.9,2.57335052]
[1761052304440,0.4384,3886.4,3885.4,0.50688]
[1761052304646,0.4384,3886.4,3885.3,3.731]
[1761052304647,0.2279,3886.0,3885.3,3.731]
[1761052304847,0.2279,3886.0,3885.6,2.57355938]
[1761052305247,0.2279,3886.0,3885.7,2.57351133]
[1761052305563,0.2279,3886.0,3885.5,2.57366683]
[1761052306056,0.2279,3886.0,3885.3,3.731]
[1761052306456,0.2279,3886.0,3885.8,2.57341094]
[1761052306673,0.2279,3886.0,3885.9,2.57340641]
[1761052307174,0.4384,3886.4,3885.3,3.731]
[1761052307175,0.128,3886.4,3885.8,0.128]
[1761052307374,0.8125,3886.5,3885.6,0.50688]
[1761052307557,0.8125,3886.5,3886.2,2.5731863]
[1761052307758,0.8125,3886.5,3885.6,0.50688]
[1761052307759,0.8125,3886.5,3886.3,2.57313795]
[1761052307975,0.8125,3886.5,3886.2,2.57318914]
[1761052308491,0.8125,3886.5,3886.1,2.57323401]
[1761052308641,1.2509,3886.5,3886.1,2.57325952]
[1761052308846,0.4384,3886.4,3886.1,2.57325952]
[1761052309283,0.8125,3886.5,3886.1,2.57322593]
[1761052309443,1.2509,3886.5,3886.1,2.57322593]
[1761052309646,0.4384,3886.4,3885.4,0.50688]
[1761052309874,0.4384,3886.4,3885.8,2.57341281]
[1761052310074,0.382386,3886.3,3885.9,2.57340338]
[1761052310285,0.4384,3886.4,3885.9,2.57340338]
[1761052310845,0.4384,3886.4,3885.8,2.57345614]
[1761052311050,0.4384,3886.4,3885.6,0.50688]
[1761052311348,0.8125,3886.5,3886.3,2.57314049]
[1761052311556,0.8125,3886.5,3886.4,2.57307533]
[1761052313584,0.8125,3886.5,3886.4,6.26507533]
[1761052315308,0.8135,3886.5,3886.4,6.26507533]
[1761052317394,0.8135,3886.5,3886.4,7.2768985]
[1761052317596,0.8135,3886.5,3886.4,7.6727985]
[1761052317991,0.8135,3886.5,3886.4,7.2768985]
[1761052318415,0.8135,3886.5,3886.4,7.16785533]
[1761052319280,1e-08,3886.5,3886.4,7.16785533]
[1761052321679,1e-08,3886.5,3886.4,2.57307533]
[1761052321881,1e-08,3886.5,3886.4,6.24207533]
[1761052322608,1e-08,3886.5,3886.4,6.74895533]
[1761052322919,0.47240001,3886.5,3884.8,0.3959]
[1761052323083,0.47240001,3886.5,3885.4,3.67]
[1761052323421,0.2306,3885.5,3885.4,0.002]
[1761052323584,0.2306,3885.5,3885.4,2.57573758]
[1761052323913,0.2306,3885.9,3885.7,2.57352805]
[1761052324083,0.2306,3885.9,3885.4,0.002]
[1761052324283,0.4724,3885.8,3885.5,2.57361107]
[1761052324484,0.4724,3885.8,3885.4,0.002]
[1761052325121,0.50044599,3885.7,3885.4,0.002]
[1761052325617,0.4724,3885.6,3885.4,0.002]
[1761052325818,2.57367134,3885.5,3885.4,0.002]
[1761052325996,0.4724,3885.5,3885.4,0.002]
[1761052326790,3.04607134,3885.5,3885.4,0.002]
[1761052327048,3.6627166,3885.5,3885.4,0.002]
[1761052327255,1.08904526,3885.5,3885.4,0.002]
[1761052327414,3.04607134,3885.5,3885.4,0.002]
[1761052327614,3.59269217,3885.5,3885.4,0.002]
[1761052327860,3.59272752,3885.5,3885.4,0.002]
[1761052328239,3.04607134,3885.5,3885.4,0.002]
[1761052328433,3.17407134,3885.5,3885.4,0.002]
[1761052328618,1.1751626,3885.5,3885.4,0.002]
[1761052328923,0.4724,3885.5,3885.4,0.002]
[1761052330074,2.2004,3885.5,3885.4,0.002]
[1761052330368,1.728,3885.5,3885.4,0.002]
[1761052330667,0.4724,3885.5,3885.4,0.002]
[1761052331823,3.04607134,3885.5,3885.4,0.002]
[1761052332057,3.13985447,3885.5,3885.4,0.002]
[1761052332255,0.128,3885.6,3885.4,0.002]
[1761052332416,1.856,3885.6,3885.4,0.002]
[1761052332623,0.128,3885.6,3885.4,0.002]
[1761052332818,3.641,3885.8,3885.4,2.70368998]
[1761052333123,3.641,3885.8,3885.6,2.57359806]
[1761052333338,3.641,3885.8,3885.4,2.70369742]
[1761052333639,3.641,3885.8,3885.4,0.13]
[1761052333817,3.641,3885.8,3885.6,2.57359317]
[1761052334017,3.641,3885.8,3885.4,0.13]
[1761052334222,0.4724,3885.7,3885.4,0.13]
[1761052334983,0.27338123,3885.6,3885.4,0.13]
[1761052335269,0.27338123,3885.6,3885.0,0.002]
[1761052335270,2.57393632,3885.1,3885.0,0.002]
[1761052335577,8.06593632,3885.1,3885.0,0.002]
[1761052335733,8.53833632,3885.1,3885.0,0.002]
[1761052335936,2.57420135,3884.7,3884.6,0.002]
[1761052336256,4.55962149,3884.7,3884.6,0.002]
[1761052336435,5.03202149,3884.7,3884.6,0.002]
[1761052337256,14.14865749,3884.7,3884.6,0.002]
[1761052337463,11.37928149,3884.7,3884.6,0.002]
[1761052337763,2.45782014,3884.7,3884.6,0.002]
[1761052338055,5.363,3884.7,3884.6,0.002]
[1761052338294,3.635,3884.7,3884.6,0.002]
[1761052338460,3.629,3884.8,3884.6,0.002]
[1761052338959,0.4464,3884.7,3884.6,0.002]
[1761052339164,3.629,3884.8,3884.6,2.5762581]
[1761052339369,3.629,3884.8,3884.7,2.599895]
[1761052339551,0.2201,3885.1,3884.9,2.57406883]
[1761052339754,0.128,3885.4,3885.0,2.57400257]
[1761052339944,3.628,3885.5,3885.2,0.128]
[1761052340132,2.1744,3885.4,3885.2,0.128]
[1761052340332,3.628,3885.5,3885.2,0.128]
[1761052340742,1.728,3885.4,3885.2,0.128]
[1761052342097,3.628,3885.5,3885.2,0.243]
[1761052342389,3.628,3885.5,3885.3,2.57377472]
[1761052342685,3.625,3885.6,3885.3,2.57378105]
[1761052342869,3.625,3885.6,3885.2,0.128]
[1761052343069,3.625,3885.6,3885.4,2.5737089]
[1761052343581,3.625,3885.6,3885.3,2.57380238]
[1761052344465,3.625,3885.6,3885.2,2.70185329]
[1761052344466,3.618,3885.6,3885.2,2.70185329]
[1761052344685,3.612,3885.6,3885.3,2.573773]
[1761052344855,3.612,3885.6,3885.2,0.128]
[1761052345055,0.4464,3885.5,3885.2,0.128]
[1761052345953,0.85224,3885.5,3885.2,0.128]
[1761052346157,0.128,3885.2,3884.6,0.002]
[1761052346369,2.57407978,3884.9,3884.6,0.002]
[1761052346664,4.0554,3885.1,3884.6,0.002]
[1761052346877,0.4464,3885.0,3884.6,0.002]
[1761052347387,2.57415483,3884.8,3884.6,0.002]
[1761052347556,0.40584,3885.5,3884.6,0.002]
[1761052347557,4.0544,3884.7,3884.6,0.002]
[1761052347754,6.62760135,3884.7,3884.6,0.002]
[1761052348182,0.4464,3885.3,3884.6,2.57624945]
[1761052348493,3.605,3885.2,3884.6,0.002]
[1761052348667,2.57406471,3885.0,3884.6,0.002]
[1761052348870,6.72429797,3885.0,3884.6,0.002]
[1761052349078,3.02046897,3884.9,3884.6,0.002]
[1761052349386,2.57420135,3884.7,3884.6,0.002]
[1761052349606,3.02046897,3884.9,3884.6,0.002]
[1761052349607,3.605,3884.9,3884.6,0.002]
[1761052350012,0.9114586,3885.9,3884.6,2.5762584]
[1761052350175,3.605,3885.4,3884.6,2.5762584]
[1761052350381,2.80404509,3885.9,3885.2,2.57385356]
[1761052350382,0.677,3885.9,3885.2,2.57385356]
[1761052350610,3.603,3885.8,3885.2,2.57385356]
[1761052350781,3.603,3885.7,3885.3,2.573754]
[1761052350989,3.98636,3885.7,3884.7,2.5741366]
[1761052351311,0.441,3885.6,3884.9,2.57405366]
[1761052351486,0.001,3885.5,3884.6,0.002]
[1761052351886,0.001,3885.5,3885.0,2.57399182]
[1761052352086,0.001,3885.5,3884.6,0.50888]
[1761052352287,0.001,3885.5,3884.8,0.50688]
[1761052352521,0.001,3885.5,3885.3,2.57377975]
[1761052352694,0.001,3885.5,3885.4,2.57373758]
[1761052356279,0.001,3885.5,3885.4,2.97363758]
[1761052357014,0.001,3885.5,3885.4,3.50625495]
[1761052357215,0.001,3885.5,3885.4,6.21266731]
[1761052357422,0.001,3885.5,3885.4,6.18692994]
[1761052358012,0.001,3885.5,3885.4,6.31492994]
[1761052362331,0.001,3885.5,3885.4,5.40814994]
[1761052362484,0.001,3885.5,3885.4,3.20861758]
[1761052363785,0.001,3885.5,3885.4,2.57373758]
[1761052363987,0.442,3885.5,3885.0,1.728]
[1761052364186,0.442,3885.5,3884.1,0.3999]
[1761052364382,0.442,3885.5,3883.8,2.57677953]
[1761052364645,0.234,3884.7,3883.8,2.57674932]
[1761052364862,0.234,3884.7,3883.8,0.002]
[1761052365063,0.675,3884.7,3884.0,2.57460596]
[1761052365354,0.675,3884.7,3883.8,0.50888]
[1761052365535,0.675,3884.7,3884.0,2.57466511]
[1761052366041,0.675,3884.7,3884.0,2.57462604]
[1761052366248,0.675,3884.7,3883.8,0.002]
[1761052366441,0.675,3884.7,3883.8,2.57679073]
[1761052366643,0.675,3884.7,3884.2,2.5745294]
[1761052367020,0.675,3884.7,3883.8,0.002]
[1761052367222,0.675,3884.7,3884.2,2.57452519]
[1761052367740,0.675,3884.7,3883.8,0.002]
[1761052367911,0.675,3884.7,3883.9,2.57468056]
[1761052368312,0.675,3884.7,3884.0,2.57465301]
[1761052368643,0.675,3884.7,3884.1,2.57458299]
[1761052368851,0.675,3884.7,3884.2,2.57452211]
[1761052369247,0.675,3884.7,3884.1,2.5745765]
[1761052369750,2.4088586,3885.7,3884.1,0.119]
[1761052369950,0.234,3885.0,3883.8,0.002]
[1761052370147,1.728,3884.9,3884.2,0.002]
[1761052370310,0.441,3884.8,3884.2,0.002]
[1761052370745,0.441,3884.8,3884.2,2.57650816]
[1761052370928,0.441,3884.8,3884.2,0.002]
[1761052371348,0.441,3884.8,3884.2,2.57651913]
[1761052372262,0.441,3884.8,3884.3,2.57444618]
[1761052372463,4.022,3884.8,3884.4,2.57439156]
[1761052372826,1.728,3884.9,3884.7,2.57420135]
[1761052373026,3.581,3884.8,3884.2,0.002]
[1761052373221,3.581,3884.8,3884.5,2.57428394]
[1761052373463,3.581,3884.8,3884.5,2.57431255]
[1761052374068,0.128,3884.7,3884.6,2.57626762]
[1761052375071,0.128,3885.0,3884.6,2.5762472]
[1761052375232,0.128,3885.0,3884.6,0.002]
[1761052375233,0.3136,3885.0,3884.6,0.002]
[1761052375428,0.441,3884.9,3884.6,0.002]
[1761052375633,1.728,3885.2,3884.9,2.57406269]
[1761052375860,0.128,3885.2,3884.9,2.57406269]
[1761052376267,0.128,3885.2,3885.1,2.57393632]
[1761052376575,0.001,3885.5,3885.2,2.57384521]
[1761052376733,0.001,3885.5,3885.3,2.57380216]
[1761052376934,0.001,3885.5,3885.2,2.57385288]
[1761052377133,0.001,3885.5,3885.3,2.57378533]
[1761052377566,0.001,3885.5,3885.4,2.57373758]
[1761052378297,0.001,3885.5,3885.4,3.48051758]
[1761052378468,0.001,3885.5,3885.4,4.10002799]
[1761052380478,0.001,3885.5,3885.4,3.70012799]
[1761052380683,0.001,3885.5,3885.4,4.10002799]
[1761052381059,0.001,3885.5,3885.4,3.70012799]
[1761052381541,0.001,3885.5,3885.4,4.10002799]
[1761052382483,0.001,3885.5,3884.9,1.728]
[1761052382684,0.453,3885.4,3884.2,0.002]
[1761052382865,0.453,3885.4,3884.4,3.579]
[1761052383073,0.2177,3884.7,3884.2,0.002]
[1761052383445,0.2177,3884.7,3884.2,0.50888]
[1761052383744,0.2177,3884.7,3884.2,2.57652543]
[1761052384258,0.2177,3884.7,3884.5,2.5743108]
[1761052385357,0.6707,3884.7,3884.5,2.57433324]
[1761052385648,0.2177,3884.7,3884.3,2.57445459]
[1761052385847,0.2177,3884.7,3884.4,2.57438712]
[1761052386043,0.001,3885.5,3884.6,3.08310906]
[1761052386249,0.001,3885.5,3885.4,2.57373758]
[1761052386457,0.001,3885.5,3885.3,0.115]
[1761052386778,0.001,3885.0,3884.9,2.57406883]
[1761052387363,0.001,3885.0,3884.9,3.08094883]
[1761052387739,0.001,3885.0,3884.9,3.10668951]
[1761052387943,0.001,3885.0,3884.9,3.64923302]
[1761052388165,0.001,3885.0,3884.9,0.128]
[1761052388350,0.454,3885.0,3884.6,2.57625859]
[1761052388564,0.454,3885.0,3884.6,0.002]
[1761052389777,3.028006,3885.0,3884.6,0.002]
[1761052390177,0.453,3884.9,3884.6,0.002]
[1761052390478,0.3028006,3884.8,3884.6,0.002]
[1761052390857,0.453,3884.7,3884.6,0.002]
[1761052391269,7.01244035,3884.7,3884.6,0.002]
[1761052391782,11.13633433,3884.7,3884.6,0.002]
[1761052392078,10.59044035,3884.7,3884.6,0.002]
[1761052392277,14.10943543,3884.7,3884.6,0.002]
[1761052392849,3.07483608,3884.7,3884.6,0.002]
[1761052393075,2.181,3884.7,3884.6,0.002]
[1761052393876,6.658974,3884.7,3884.6,0.002]
[1761052394079,7.08520135,3884.7,3884.6,0.002]
[1761052394495,16.57850873,3884.7,3884.6,0.002]
[1761052394714,14.71982873,3884.7,3884.6,0.002]
[1761052394926,16.03382728,3884.7,3884.6,0.002]
[1761052395431,6.61536428,3884.7,3884.6,0.002]
[1761052395721,18.18291595,3884.7,3884.6,0.002]
[1761052396716,21.25822995,3884.7,3884.6,0.002]
[1761052397117,20.01468695,3884.7,3884.6,0.002]
[1761052397323,15.03643395,3884.7,3884.6,0.002]
[1761052397481,25.10213395,3884.7,3884.6,0.002]
[1761052398000,16.69156495,3884.7,3884.6,0.002]
[1761052398313,14.96203595,3884.7,3884.6,0.002]
[1761052398489,17.91015795,3884.7,3884.6,0.002]
[1761052399498,17.40330395,3884.7,3884.6,0.002]
[1761052399888,10.52016095,3884.7,3884.6,0.002]
[1761052400080,13.09274795,3884.7,3884.6,0.002]
[1761052400611,20.17991795,3884.7,3884.6,0.002]
[1761052401024,15.16594195,3884.7,3884.6,0.002]
[1761052401202,14.28310095,3884.7,3884.6,0.002]
[1761052401593,15.20952895,3884.7,3884.6,0.002]
[1761052401811,14.16613195,3884.7,3884.6,0.002]
[1761052401993,8.1642806,3884.7,3884.6,0.002]
[1761052402226,9.22578367,3884.7,3884.6,0.002]
[1761052402396,5.102666,3884.7,3884.6,0.002]
[1761052402592,5.7533,3884.7,3884.6,0.002]
[1761052402994,3.576,3884.7,3884.6,0.002]
[1761052403683,3.576,3884.7,3884.6,2.57626762]
[1761052405996,3.575,3884.9,3884.8,2.57413509]
[1761052406398,0.001,3885.0,3884.9,2.57406883]
[1761052406616,3.576,3885.0,3884.9,2.57406883]
[1761052406811,0.001,3885.0,3884.9,2.57406883]
[1761052409835,0.001,3885.0,3884.9,2.97396883]
[1761052410348,0.001,3885.0,3884.9,3.08094883]
[1761052410512,0.001,3885.0,3884.9,3.48084883]
[1761052411412,0.001,3885.0,3884.9,3.08094883]
[1761052412141,0.4388,3885.0,3884.6,0.002]
[1761052412341,0.128,3884.9,3884.6,0.002]
[1761052412544,0.41398,3884.8,3884.6,0.002]
[1761052412746,0.41398,3884.8,3884.6,2.5762249]
[1761052412947,0.128,3884.9,3884.6,2.5762249]
[1761052414242,0.5658,3884.9,3884.6,0.002]
[1761052414750,0.4378,3884.8,3884.6,0.002]
[1761052415129,0.128,3884.7,3884.6,0.002]
[1761052415613,3.14000135,3884.7,3884.6,0.002]
[1761052415810,3.39540853,3884.7,3884.6,0.002]
[1761052416454,6.51622336,3884.7,3884.6,0.002]
[1761052419415,3.50422201,3884.7,3884.6,0.002]
[1761052419639,3.94202201,3884.7,3884.6,0.002]
[1761052419840,6.51622336,3884.7,3884.6,0.002]
[1761052420462,1.64822201,3884.7,3884.6,0.002]
[1761052420651,1.10160853,3884.7,3884.6,0.002]
[1761052421154,1.64862175,3884.7,3884.6,0.002]
[1761052421546,1.10160853,3884.7,3884.6,0.002]
[1761052423262,0.9847786,3884.7,3884.6,0.002]
[1761052423488,2.088492,3884.6,3883.8,0.002]
[1761052423663,1.19035404,3884.7,3883.8,0.002]
[1761052423664,0.2267,3883.9,3883.8,0.002]
[1761052423836,5.72017,3883.9,3883.8,0.002]
[1761052424157,6.15797,3883.9,3883.8,0.002]
[1761052424558,6.70463459,3883.9,3883.8,0.002]
[1761052424857,6.04013459,3883.9,3883.8,0.002]
[1761052425058,5.298,3883.9,3883.8,0.002]
[1761052425260,3.569,3883.9,3883.8,0.002]
[1761052425568,4.30226184,3884.7,3883.9,2.57470592]
[1761052425734,4.11667696,3884.6,3883.9,2.57473158]
[1761052425935,2.27467696,3884.5,3883.8,0.02774797]
[1761052426133,3.57,3884.6,3884.0,2.57462192]
[1761052426332,0.831095,3884.5,3884.1,2.57459773]
[1761052426570,3.57,3884.6,3884.0,2.57465396]
[1761052426858,3.57,3884.6,3883.8,0.002]
[1761052426859,2.71256493,3884.5,3883.9,2.57471677]
[1761052427063,2.1658,3884.5,3883.9,2.57471677]
[1761052427437,1.728,3884.5,3883.8,2.57676004]
[1761052427640,1.728,3884.5,3883.9,2.57470893]
[1761052428559,1.728,3884.5,3884.0,2.57466178]
[1761052428747,1.728,3884.5,3883.9,2.57471829]
[1761052429148,1.728,3884.5,3883.8,2.57677476]
[1761052429374,0.83100072,3884.4,3883.8,2.57677476]
[1761052429552,0.83100072,3884.4,3883.8,2.57678856]
[1761052430256,0.83100072,3884.4,3884.0,2.57465511]
[1761052430455,1.728,3884.5,3884.0,2.57465511]
[1761052430680,2.1658,3884.5,3883.9,2.57470691]
[1761052430987,2.1658,3884.5,3883.8,0.002]
[1761052431187,0.54698623,3884.4,3883.8,0.002]
[1761052431368,0.98478623,3884.4,3883.8,0.002]
[1761052431678,0.88571759,3884.3,3883.8,0.002]
[1761052431876,3.568,3884.2,3883.8,0.002]
[1761052432081,4.0058,3884.2,3883.8,0.002]
[1761052432245,4.0058,3884.2,3883.8,2.57679394]
[1761052432443,3.568,3884.2,3883.8,2.57679394]
[1761052433551,0.128,3884.0,3883.8,2.57679394]
[1761052433982,0.128,3884.0,3883.9,2.57473158]
[1761052434481,0.128,3884.0,3883.8,2.57677136]
[1761052436479,0.128,3884.0,3883.8,0.002]
[1761052436660,0.128,3884.0,3883.8,2.57679541]
[1761052437951,0.128,3884.0,3883.9,2.57473158]
[1761052438576,0.128,3884.0,3883.8,2.57677829]
[1761052438784,0.128,3884.0,3883.8,0.002]
[1761052439277,0.128,3884.0,3883.8,2.57677587]
[1761052440162,0.128,3884.0,3883.8,0.002]
[1761052440363,0.128,3884.0,3883.8,2.57679194]
[1761052440562,0.128,3884.0,3883.8,0.002]
[1761052441378,0.128,3884.0,3883.8,2.57677149]
[1761052441683,0.128,3884.0,3883.8,0.002]
[1761052442493,0.696,3883.9,3883.8,0.002]
[1761052442664,0.77689271,3883.9,3883.8,0.002]
[1761052442870,4.11089271,3883.9,3883.8,2.57679787]
[1761052443056,3.563,3883.9,3883.8,2.57679787]
[1761052444065,3.564,3884.2,3884.1,2.574599]
[1761052444264,4.11186146,3884.2,3884.1,2.574599]